fUSD/lending_fUSD_20250103
["ID","MTS","AMOUNT","RATE_DAILY","PERIOD"]
[347538750,1735908647118,-500.0,8.983e-05,2]
[347538751,1735908647128,-500.0,8.983e-05,2]
[347538752,1735908647140,-500.0,8.983e-05,2]
[347538753,1735908647149,-500.0,8.983e-05,2]
[347538754,1735908647158,-500.0,8.983e-05,2]
[347538755,1735908647169,-812.42,8.983e-05,2]
[347538756,1735908647178,-784.5,8.983e-05,2]
[347538757,1735908647187,-500.0,8.983e-05,2]
[347538758,1735908647197,-500.0,8.983e-05,2]
[347538759,1735908647207,-500.0,8.983e-05,2]
[347538760,1735908647216,-500.0,8.983e-05,2]
[347538761,1735908647225,-500.0,8.983e-05,2]
[347538762,1735908647235,-500.0,8.983e-05,2]
[347538763,1735908647245,-500.0,8.983e-05,2]
[347538764,1735908647255,-861.86,8.983e-05,2]
[347538765,1735908647264,-500.0,8.983e-05,2]
[347538766,1735908647274,-500.0,8.983e-05,2]
[347538767,1735908647283,-500.0,8.983e-05,2]
[347538768,1735908647293,-751.91,8.983e-05,2]
[347538769,1735908647302,-578.96,8.983e-05,2]
[347538770,1735908647312,-837.23,8.983e-05,2]
[347538771,1735908647321,-5015.22,8.983e-05,2]
[347538772,1735908647331,-500.0,8.983e-05,2]
[347538773,1735908647340,-500.0,8.983e-05,2]
[347538774,1735908647349,-554.69,8.983e-05,2]
[347538775,1735908647359,-500.0,8.983e-05,2]
[347538776,1735908647368,-500.0,8.983e-05,2]
[347538777,1735908647378,-2435.1,8.983e-05,2]
[347538778,1735908647391,-1120.89,8.983e-05,2]
[347538779,1735908647401,-728.67,8.983e-05,2]
[347538780,1735908647411,-500.0,8.983e-05,2]
[347538781,1735908647423,-500.0,8.983e-05,2]
[347538782,1735908647433,-500.0,8.983e-05,2]
[347538783,1735908647442,-500.0,8.983e-05,2]
[347538784,1735908647451,-1181.12,8.983e-05,2]
[347538785,1735908647462,-1777.7,8.983e-05,2]
[347538786,1735908647472,-500.0,8.983e-05,2]
[347538787,1735908647482,-823.16,8.983e-05,2]
[347538788,1735908647492,-500.0,8.983e-05,2]
[347538789,1735908647502,-568.34,8.983e-05,2]
[347538790,1735908647512,-644.67,8.983e-05,2]
[347538791,1735908647522,-2951.98,8.983e-05,2]
[347538792,1735908647532,-500.0,8.983e-05,2]
[347538793,1735908647542,-500.0,8.983e-05,2]
[347538794,1735908647551,-534.07,8.983e-05,2]
[347538795,1735908647793,-578.28,8.983e-05,2]
[347538796,1735908647804,-606.49,8.983e-05,2]
[347538797,1735908647814,-500.0,8.983e-05,2]
[347538798,1735908647824,-500.0,8.983e-05,2]
[347538799,1735908647833,-659.88,8.983e-05,2]
[347538800,1735908647842,-2114.02,8.983e-05,2]
[347538801,1735908647852,-909.69,8.983e-05,2]
[347538802,1735908647862,-500.0,8.983e-05,2]
[347538803,1735908647871,-1128.15,8.983e-05,2]
[347538804,1735908647881,-3728.88,8.983e-05,2]
[347538805,1735908647892,-500.0,8.983e-05,2]
[347538806,1735908647901,-500.0,8.983e-05,2]
[347538807,1735908647912,-500.0,8.983e-05,2]
[347538808,1735908647921,-777.09,8.983e-05,2]
[347538809,1735908647932,-1514.53,8.983e-05,2]
[347538810,1735908647942,-500.0,8.983e-05,2]
[347538811,1735908647951,-3187.21,8.983e-05,2]
[347538812,1735908647962,-500.0,8.983e-05,2]
[347538813,1735908647971,-500.0,8.983e-05,2]
[347538814,1735908647981,-500.0,8.983e-05,2]
[347538815,1735908647991,-500.0,8.983e-05,2]
[347538816,1735908648000,-500.0,8.983e-05,2]
[347538817,1735908648009,-820.49,8.983e-05,2]
[347538818,1735908648019,-500.0,8.983e-05,2]
[347538819,1735908648028,-500.0,8.983e-05,2]
[347538820,1735908648037,-500.0,8.983e-05,2]
[347538821,1735908648047,-500.0,8.983e-05,2]
[347538822,1735908648056,-500.0,8.983e-05,2]
[347538823,1735908648066,-500.0,8.983e-05,2]
[347538824,1735908648076,-1124.01,8.983e-05,2]
[347538825,1735908648086,-500.0,8.983e-05,2]
[347538826,1735908648096,-767.51,8.983e-05,2]
[347538827,1735908648105,-500.0,8.983e-05,2]
[347538828,1735908648115,-1734.48,8.983e-05,2]
[347538829,1735908648125,-650.18,8.983e-05,2]
[347538830,1735908648135,-500.0,8.983e-05,2]
[347538831,1735908648145,-500.0,8.983e-05,2]
[347538832,1735908648154,-500.0,8.983e-05,2]
[347538833,1735908648164,-500.0,8.983e-05,2]
[347538834,1735908648174,-663.88,8.983e-05,2]
[347538835,1735908648183,-687.28,8.983e-05,2]
[347538836,1735908648193,-500.0,8.983e-05,2]
[347538837,1735908648203,-994.18,8.983e-05,2]
[347538838,1735908648213,-924.64,8.983e-05,2]
[347538839,1735908648222,-619.2,8.983e-05,2]
[347538840,1735908648232,-500.0,8.983e-05,2]
[347538841,1735908648242,-500.0,8.983e-05,2]
[347538842,1735908648251,-720.08,8.983e-05,2]
[347538843,1735908648260,-512.58,8.983e-05,2]
[347538844,1735908648270,-1084.94,8.983e-05,2]
[347538845,1735908648280,-1295.0,8.983e-05,2]
[347538846,1735908648289,-500.0,8.983e-05,2]
[347538847,1735908648299,-429.99,8.983e-05,2]
[347538848,1735908648308,-500.0,8.983e-05,2]
[347538849,1735908648318,-500.0,8.983e-05,2]
[347538850,1735908648327,-1107.76,8.983e-05,2]
[347538851,1735908648336,-853.43,8.983e-05,2]
[347538852,1735908648346,-500.0,8.983e-05,2]
[347538853,1735908648355,-1044.01,8.983e-05,2]
[347538854,1735908648364,-587.1611623,8.983e-05,2]
[347538855,1735908648374,-500.0,8.983e-05,2]
[347538856,1735908648384,-500.0,8.983e-05,2]
[347538857,1735908648395,-500.0,8.983e-05,2]
[347538858,1735908648410,-847.29,8.983e-05,2]
[347538859,1735908648429,-5836.32,8.983e-05,2]
[347538860,1735908648440,-500.0,8.983e-05,2]
[347538861,1735908648449,-1707.57,8.983e-05,2]
[347538862,1735908648458,-500.0,8.983e-05,2]
[347538863,1735908648468,-896.4,8.983e-05,2]
[347538864,1735908648478,-500.0,8.983e-05,2]
[347538865,1735908648487,-1140.23,8.983e-05,2]
[347538866,1735908648497,-500.0,8.983e-05,2]
[347538867,1735908648506,-500.0,8.983e-05,2]
[347538868,1735908648516,-500.0,8.983e-05,2]
[347538869,1735908648526,-500.0,8.983e-05,2]
[347538870,1735908648536,-500.0,8.983e-05,2]
[347538871,1735908648545,-500.0,8.983e-05,2]
[347538872,1735908648555,-500.0,8.983e-05,2]
[347538873,1735908648565,-500.0,8.983e-05,2]
[347538874,1735908648575,-500.0,8.983e-05,2]
[347538875,1735908648584,-1946.45,8.983e-05,2]
[347538876,1735908648593,-1707.93,8.983e-05,2]
[347538877,1735908648603,-1391.47,8.983e-05,2]
[347538878,1735908648612,-512.42,8.983e-05,2]
[347538879,1735908648622,-798.29,8.983e-05,2]
[347538880,1735908648632,-500.0,8.983e-05,2]
[347538881,1735908648644,-629.79,8.983e-05,2]
[347538882,1735908648654,-500.0,8.983e-05,2]
[347538883,1735908648664,-500.0,8.983e-05,2]
[347538884,1735908648674,-500.0,8.983e-05,2]
[347538885,1735908648683,-500.0,8.983e-05,2]
[347538886,1735908648692,-537.44,8.983e-05,2]
[347538887,1735908648702,-1681.76,8.983e-05,2]
[347538888,1735908648712,-500.0,8.983e-05,2]
[347538889,1735908648722,-500.0,8.983e-05,2]
[347538890,1735908648732,-500.0,8.983e-05,2]
[347538891,1735908648742,-944.85,8.983e-05,2]
[347538892,1735908648751,-3396.82,8.983e-05,2]
[347538893,1735908648762,-500.0,8.983e-05,2]
[347538894,1735908648771,-1983.46,8.983e-05,2]
[347538895,1735908648781,-500.0,8.983e-05,2]
[347538896,1735908648791,-836.06,8.983e-05,2]
[347538897,1735908648801,-703.06,8.983e-05,2]
[347538898,1735908648811,-500.0,8.983e-05,2]
[347538899,1735908648821,-663.1,8.983e-05,2]
[347538900,1735908648830,-500.0,8.983e-05,2]
[347538901,1735908648840,-1912.49,8.983e-05,2]
[347538902,1735908648850,-500.0,8.983e-05,2]
[347538903,1735908648859,-5939.22,8.983e-05,2]
[347538904,1735908648869,-500.0,8.983e-05,2]
[347538905,1735908648879,-500.0,8.983e-05,2]
[347538906,1735908648890,-500.0,8.983e-05,2]
[347538907,1735908648900,-500.0,8.983e-05,2]
[347538908,1735908648909,-500.0,8.983e-05,2]
[347538909,1735908648919,-500.0,8.983e-05,2]
[347538910,1735908648928,-1135.03,8.983e-05,2]
[347538911,1735908648938,-2397.39,8.983e-05,2]
[347538912,1735908648948,-900.19,8.983e-05,2]
[347538913,1735908648958,-1731.24,8.983e-05,2]
[347538914,1735908648968,-500.0,8.983e-05,2]
[347538915,1735908648978,-500.0,8.983e-05,2]
[347538916,1735908648987,-500.0,8.983e-05,2]
[347538917,1735908648997,-500.0,8.983e-05,2]
[347538918,1735908649007,-526.56,8.983e-05,2]
[347538919,1735908649017,-500.0,8.983e-05,2]
[347538920,1735908649027,-500.0,8.983e-05,2]
[347538921,1735908649036,-824.94,8.983e-05,2]
[347538922,1735908649046,-6674.6,8.983e-05,2]
[347538923,1735908649056,-500.0,8.983e-05,2]
[347538924,1735908649066,-2344.91,8.983e-05,2]
[347538925,1735908649076,-500.0,8.983e-05,2]
[347538926,1735908649085,-4960.98,8.984e-05,2]
[347538927,1735908649095,-4132.78,8.984e-05,2]
[347538928,1735908649105,-898.38,8.984e-05,2]
[347538929,1735908649115,-500.0,8.984e-05,2]
[347538930,1735908649125,-1264.05,8.984e-05,2]
[347538931,1735908649137,-739.62,8.984e-05,2]
[347538932,1735908649146,-1874.78,8.984e-05,2]
[347538933,1735908649156,-2606.03,8.984e-05,2]
[347538934,1735908649166,-1672.18,8.984e-05,2]
[347538935,1735908649176,-3664.25,8.984e-05,2]
[347538936,1735908649185,-150.0,8.988e-05,2]
[347538937,1735908649196,-900.0,9e-05,3]
[347538938,1735908649206,-500.0,9.155e-05,2]
[347538939,1735908649215,-780.14,9.155e-05,2]
[347538940,1735908649225,-1798.67,9.156e-05,2]
[347538941,1735908649235,-681.68,9.156e-05,2]
[347538942,1735908649245,-5248.68,9.156e-05,2]
[347538943,1735908649254,-1945.3,9.156e-05,2]
[347538944,1735908649264,-2895.72,9.156e-05,2]
[347538945,1735908649274,-2668.8,9.156e-05,2]
[347538946,1735908649284,-500.54,9.157e-05,2]
[347538947,1735908649293,-150.56,9.157e-05,2]
[347538948,1735908649302,-500.0,9.157e-05,2]
[347538949,1735908649312,-500.0,9.157e-05,2]
[347538950,1735908649321,-511.71,9.157e-05,2]
[347538951,1735908649331,-500.0,9.157e-05,2]
[347538952,1735908649341,-500.0,9.157e-05,2]
[347538953,1735908649351,-500.0,9.157e-05,2]
[347538954,1735908649361,-500.0,9.157e-05,2]
[347538955,1735908649370,-719.03,9.157e-05,2]
[347538956,1735908649380,-500.0,9.157e-05,2]
[347538957,1735908649394,-500.0,9.157e-05,2]
[347538958,1735908649403,-750.2,9.157e-05,2]
[347538959,1735908649415,-500.0,9.157e-05,2]
[347538960,1735908649425,-500.0,9.157e-05,2]
[347538961,1735908649436,-500.0,9.157e-05,2]
[347538962,1735908649446,-500.0,9.157e-05,2]
[347538963,1735908649457,-500.0,9.157e-05,2]
[347538964,1735908649467,-539.3,9.157e-05,2]
[347538965,1735908649476,-500.0,9.157e-05,2]
[347538966,1735908649486,-500.0,9.157e-05,2]
[347538967,1735908649497,-500.0,9.157e-05,2]
[347538968,1735908649507,-500.0,9.157e-05,2]
[347538969,1735908649516,-500.0,9.157e-05,2]
[347538970,1735908649526,-523.1,9.157e-05,2]
[347538971,1735908649537,-500.0,9.157e-05,2]
[347538972,1735908649547,-642.63,9.157e-05,2]
[347538973,1735908649556,-500.0,9.157e-05,2]
[347538974,1735908649566,-500.0,9.157e-05,2]
[347538975,1735908649575,-486.82810322,9.157e-05,2]
[347538976,1735908649585,-500.0,9.157e-05,2]
[347538977,1735908649595,-500.0,9.157e-05,2]
[347538978,1735908649604,-807.35,9.157e-05,2]
[347538979,1735908649614,-500.0,9.157e-05,2]
[347538980,1735908649624,-500.0,9.157e-05,2]
[347538981,1735908649635,-500.0,9.157e-05,2]
[347538982,1735908649645,-520.39,9.157e-05,2]
[347538983,1735908649655,-500.0,9.157e-05,2]
[347538984,1735908649666,-594.84,9.157e-05,2]
[347538985,1735908649676,-597.89,9.157e-05,2]
[347538986,1735908649686,-500.0,9.157e-05,2]
[347538987,1735908649695,-500.0,9.157e-05,2]
[347538988,1735908649706,-726.38,9.157e-05,2]
[347538989,1735908649715,-614.61,9.157e-05,2]
[347538990,1735908649726,-500.0,9.157e-05,2]
[347538991,1735908649735,-500.0,9.157e-05,2]
[347538992,1735908649745,-150.0,9.157e-05,2]
[347538993,1735908649754,-500.0,9.157e-05,2]
[347538994,1735908649763,-541.59,9.157e-05,2]
[347538995,1735908649773,-500.0,9.157e-05,2]
[347538996,1735908649782,-500.0,9.157e-05,2]
[347538997,1735908649791,-509.84,9.157e-05,2]
[347538998,1735908649801,-531.59,9.157e-05,2]
[347538999,1735908649810,-500.0,9.157e-05,2]
[347539000,1735908649820,-500.0,9.157e-05,2]
[347539001,1735908649830,-927.48,9.157e-05,2]
[347539002,1735908649840,-500.0,9.157e-05,2]
[347539003,1735908649850,-500.0,9.157e-05,2]
[347539004,1735908649860,-500.0,9.157e-05,2]
[347539005,1735908649870,-500.0,9.157e-05,2]
[347539006,1735908649880,-519.6,9.157e-05,2]
[347539007,1735908649892,-500.0,9.157e-05,2]
[347539008,1735908649906,-521.14,9.157e-05,2]
[347539009,1735908649916,-500.0,9.157e-05,2]
[347539010,1735908649925,-500.0,9.157e-05,2]
[347539011,1735908649936,-726.9,9.157e-05,2]
[347539012,1735908649946,-500.0,9.157e-05,2]
[347539013,1735908649955,-528.87,9.157e-05,2]
[347539014,1735908649964,-572.61,9.157e-05,2]
[347539015,1735908649974,-500.0,9.157e-05,2]
[347539016,1735908649984,-500.0,9.157e-05,2]
[347539017,1735908649993,-500.0,9.157e-05,2]
[347539018,1735908650003,-1039.08,9.157e-05,2]
[347539019,1735908650012,-500.0,9.157e-05,2]
[347539020,1735908650022,-500.0,9.157e-05,2]
[347539021,1735908650033,-500.0,9.157e-05,2]
[347539022,1735908650043,-500.0,9.157e-05,2]
[347539023,1735908650053,-4034.42,9.157e-05,2]
[347539024,1735908650062,-150.0,9.179e-05,2]
[347539025,1735908650072,-150.0,9.243e-05,2]
[347539026,1735908650082,-150.0,9.243e-05,2]
[347539027,1735908650092,-1000.0,9.247e-05,2]
[347539028,1735908650101,-2434.2,9.255e-05,2]
[347539029,1735908650111,-500.0,9.255e-05,2]
[347539030,1735908650120,-178.74104932,9.255e-05,2]
[347539031,1735908650129,-500.0,9.255e-05,2]
[347539032,1735908650140,-500.0,9.255e-05,2]
[347539033,1735908650149,-500.0,9.255e-05,2]
[347539034,1735908650159,-500.0,9.255e-05,2]
[347539035,1735908650168,-500.0,9.255e-05,2]
[347539036,1735908650257,-500.0,9.255e-05,2]
[347539037,1735908650266,-500.0,9.255e-05,2]
[347539038,1735908650275,-500.0,9.255e-05,2]
[347539039,1735908650285,-500.0,9.255e-05,2]
[347539040,1735908650294,-500.0,9.255e-05,2]
[347539041,1735908650303,-500.0,9.255e-05,2]
[347539042,1735908650312,-204.83514,9.255e-05,2]
[347539043,1735908650322,-500.0,9.255e-05,2]
[347539044,1735908650331,-1915.34,9.255e-05,2]
[347539045,1735908650340,-3325.35,9.255e-05,2]
[347539046,1735908650349,-720.26,9.255e-05,2]
[347539047,1735908650358,-5385.91,9.255e-05,2]
[347539048,1735908650367,-500.0,9.255e-05,2]
[347539049,1735908650376,-500.0,9.255e-05,2]
[347539050,1735908650387,-744.34,9.255e-05,2]
[347539051,1735908650396,-500.0,9.255e-05,2]
[347539052,1735908650406,-1083.78,9.255e-05,2]
[347539053,1735908650418,-829.25,9.255e-05,2]
[347539054,1735908650428,-929.83,9.255e-05,2]
[347539055,1735908650437,-500.0,9.256e-05,2]
[347539056,1735908650446,-747.34,9.256e-05,2]
[347539057,1735908650456,-500.0,9.256e-05,2]
[347539058,1735908650465,-500.0,9.256e-05,2]
[347539059,1735908650474,-500.0,9.256e-05,2]
[347539060,1735908650484,-1032.33,9.256e-05,2]
[347539061,1735908650492,-777.68,9.256e-05,2]
[347539062,1735908650502,-767.42,9.256e-05,2]
[347539063,1735908650511,-709.82,9.256e-05,2]
[347539064,1735908650520,-616.35,9.256e-05,2]
[347539065,1735908650530,-500.0,9.256e-05,2]
[347539066,1735908650539,-500.0,9.256e-05,2]
[347539067,1735908650548,-500.0,9.256e-05,2]
[347539068,1735908650558,-172.67144832,9.256e-05,2]
[347539069,1735908650572,-503.57,9.256e-05,2]
[347539070,1735908650582,-717.61,9.256e-05,2]
[347539071,1735908650591,-500.0,9.256e-05,2]
[347539072,1735908650601,-547.75,9.256e-05,2]
[347539073,1735908650610,-884.15,9.256e-05,2]
[347539074,1735908650620,-701.52,9.256e-05,2]
[347539075,1735908650629,-822.31,9.256e-05,2]
[347539076,1735908650641,-500.0,9.256e-05,2]
[347539077,1735908650651,-500.0,9.256e-05,2]
[347539078,1735908650663,-500.0,9.256e-05,2]
[347539079,1735908650672,-500.0,9.256e-05,2]
[347539080,1735908650681,-500.0,9.256e-05,2]
[347539081,1735908650691,-500.0,9.256e-05,2]
[347539082,1735908650700,-500.0,9.256e-05,2]
[347539083,1735908650709,-531.11,9.256e-05,2]
[347539084,1735908650718,-942.89,9.256e-05,2]
[347539085,1735908650727,-500.0,9.256e-05,2]
[347539086,1735908650737,-540.24,9.256e-05,2]
[347539087,1735908650747,-692.57,9.256e-05,2]
[347539088,1735908650757,-500.0,9.256e-05,2]
[347539089,1735908650767,-976.74,9.256e-05,2]
[347539090,1735908650776,-513.75,9.256e-05,2]
[347539091,1735908650787,-500.0,9.256e-05,2]
[347539092,1735908650797,-538.73,9.256e-05,2]
[347539093,1735908650806,-1043.42,9.256e-05,2]
[347539094,1735908650815,-2036.27,9.256e-05,2]
[347539095,1735908650824,-612.45,9.256e-05,2]
[347539096,1735908650834,-500.0,9.256e-05,2]
[347539097,1735908650844,-677.04,9.256e-05,2]
[347539098,1735908650854,-500.0,9.256e-05,2]
[347539099,1735908650864,-500.0,9.256e-05,2]
[347539100,1735908650873,-500.0,9.256e-05,2]
[347539101,1735908650883,-1220.24,9.256e-05,2]
[347539102,1735908650896,-500.0,9.256e-05,2]
[347539103,1735908650905,-500.0,9.256e-05,2]
[347539104,1735908650915,-500.0,9.256e-05,2]
[347539105,1735908650924,-1168.92,9.256e-05,2]
[347539106,1735908650934,-500.0,9.256e-05,2]
[347539107,1735908650943,-500.0,9.256e-05,2]
[347539108,1735908650952,-500.0,9.256e-05,2]
[347539109,1735908650962,-500.0,9.256e-05,2]
[347539110,1735908650972,-500.0,9.256e-05,2]
[347539111,1735908650981,-500.0,9.256e-05,2]
[347539112,1735908650990,-734.05,9.256e-05,2]
[347539113,1735908651000,-500.0,9.256e-05,2]
[347539114,1735908651009,-865.62,9.256e-05,2]
[347539115,1735908651018,-500.0,9.256e-05,2]
[347539116,1735908651028,-500.0,9.256e-05,2]
[347539117,1735908651038,-649.04,9.256e-05,2]
[347539118,1735908651048,-500.0,9.256e-05,2]
[347539119,1735908651058,-500.0,9.256e-05,2]
[347539120,1735908651067,-500.0,9.256e-05,2]
[347539121,1735908651076,-500.0,9.256e-05,2]
[347539122,1735908651086,-500.0,9.256e-05,2]
[347539123,1735908651094,-590.7,9.256e-05,2]
[347539124,1735908651104,-839.01,9.256e-05,2]
[347539125,1735908651114,-500.0,9.256e-05,2]
[347539126,1735908651123,-500.0,9.256e-05,2]
[347539127,1735908651133,-1028.21,9.256e-05,2]
[347539128,1735908651143,-500.0,9.256e-05,2]
[347539129,1735908651152,-500.0,9.256e-05,2]
[347539130,1735908651161,-744.66,9.256e-05,2]
[347539131,1735908651171,-500.0,9.256e-05,2]
[347539132,1735908651181,-500.0,9.256e-05,2]
[347539133,1735908651191,-1956.11,9.256e-05,2]
[347539134,1735908651202,-613.62,9.256e-05,2]
[347539135,1735908651211,-676.7,9.256e-05,2]
[347539136,1735908651221,-557.19,9.256e-05,2]
[347539137,1735908651231,-500.0,9.256e-05,2]
[347539138,1735908651240,-500.0,9.256e-05,2]
[347539139,1735908651249,-500.0,9.256e-05,2]
[347539140,1735908651259,-500.0,9.256e-05,2]
[347539141,1735908651268,-500.0,9.256e-05,2]
[347539142,1735908651277,-500.0,9.256e-05,2]
[347539143,1735908651286,-1313.92,9.256e-05,2]
[347539144,1735908651295,-511.63,9.256e-05,2]
[347539145,1735908651304,-500.0,9.256e-05,2]
[347539146,1735908651314,-798.04,9.256e-05,2]
[347539147,1735908651323,-3198.92,9.256e-05,2]
[347539148,1735908651332,-1067.18,9.256e-05,2]
[347539149,1735908651341,-500.0,9.256e-05,2]
[347539150,1735908651351,-515.48,9.256e-05,2]
[347539151,1735908651360,-500.0,9.256e-05,2]
[347539152,1735908651369,-1443.04,9.256e-05,2]
[347539153,1735908651379,-500.0,9.256e-05,2]
[347539154,1735908651389,-500.0,9.256e-05,2]
[347539155,1735908651398,-515.65,9.256e-05,2]
[347539156,1735908651407,-1875.25,9.256e-05,2]
[347539157,1735908651419,-500.0,9.256e-05,2]
[347539158,1735908651428,-941.07,9.256e-05,2]
[347539159,1735908651437,-2886.5,9.256e-05,2]
[347539160,1735908651446,-500.0,9.256e-05,2]
[347539161,1735908651455,-1122.14,9.256e-05,2]
[347539162,1735908651466,-500.0,9.256e-05,2]
[347539163,1735908651475,-500.0,9.256e-05,2]
[347539164,1735908651484,-6449.48,9.256e-05,2]
[347539165,1735908651495,-500.0,9.256e-05,2]
[347539166,1735908651504,-629.06,9.256e-05,2]
[347539167,1735908651513,-1882.07,9.256e-05,2]
[347539168,1735908651522,-892.15,9.256e-05,2]
[347539169,1735908651532,-1183.28,9.256e-05,2]
[347539170,1735908651541,-500.0,9.256e-05,2]
[347539171,1735908651550,-1232.1,9.256e-05,2]
[347539172,1735908651559,-949.14,9.256e-05,2]
[347539173,1735908651568,-628.4,9.256e-05,2]
[347539174,1735908651577,-1092.35,9.256e-05,2]
[347539175,1735908651586,-500.0,9.256e-05,2]
[347539176,1735908651595,-500.0,9.256e-05,2]
[347539177,1735908651609,-500.0,9.256e-05,2]
[347539178,1735908651619,-268.91779124,9.256e-05,2]
[347539179,1735908651628,-598.71,9.256e-05,2]
[347539180,1735908651637,-979.91,9.256e-05,2]
[347539181,1735908651647,-1120.49,9.256e-05,2]
[347539182,1735908651656,-500.0,9.256e-05,2]
[347539183,1735908651665,-3976.89,9.256e-05,2]
[347539184,1735908651674,-837.61,9.256e-05,2]
[347539185,1735908651683,-616.8,9.256e-05,2]
[347539186,1735908651694,-500.0,9.256e-05,2]
[347539187,1735908651703,-613.45,9.256e-05,2]
[347539188,1735908651713,-632.54,9.256e-05,2]
[347539189,1735908651723,-1528.66,9.256e-05,2]
[347539190,1735908651732,-2334.41,9.256e-05,2]
[347539191,1735908651741,-5655.33,9.256e-05,2]
[347539192,1735908651750,-1252.71,9.256e-05,2]
[347539193,1735908651760,-500.0,9.256e-05,2]
[347539194,1735908651769,-2412.89,9.256e-05,2]
[347539195,1735908651778,-3779.49,9.256e-05,2]
[347539196,1735908651787,-500.0,9.256e-05,2]
[347539197,1735908651796,-500.0,9.256e-05,2]
[347539198,1735908651805,-500.0,9.256e-05,2]
[347539199,1735908651814,-500.0,9.256e-05,2]
[347539200,1735908651823,-500.0,9.256e-05,2]
[347539201,1735908651832,-4303.96,9.256e-05,2]
[347539202,1735908651841,-500.0,9.256e-05,2]
[347539203,1735908651850,-500.0,9.256e-05,2]
[347539204,1735908651859,-500.0,9.256e-05,2]
[347539205,1735908651869,-1586.02,9.256e-05,2]
[347539206,1735908651879,-723.51,9.256e-05,2]
[347539207,1735908651889,-1400.58,9.256e-05,2]
[347539208,1735908651897,-925.4,9.256e-05,2]
[347539209,1735908651906,-1669.32,9.256e-05,2]
[347539210,1735908651915,-2148.94,9.256e-05,2]
[347539211,1735908651925,-500.0,9.256e-05,2]
[347539212,1735908651936,-1935.364896,9.256e-05,2]
[347539213,1735908651946,-500.0,9.256e-05,2]
[347539214,1735908651957,-6961.68,9.256e-05,2]
[347539215,1735908651967,-500.0,9.256e-05,2]
[347539216,1735908651976,-500.0,9.256e-05,2]
[347539217,1735908651985,-817.82,9.256e-05,2]
[347539218,1735908651994,-816.65,9.256e-05,2]
[347539219,1735908652004,-500.0,9.256e-05,2]
[347539220,1735908652013,-500.0,9.256e-05,2]
[347539221,1735908652022,-2338.77,9.256e-05,2]
[347539222,1735908652031,-500.0,9.256e-05,2]
[347539223,1735908652040,-500.0,9.256e-05,2]
[347539224,1735908652049,-1906.268819,9.256e-05,2]
[347539225,1735908652058,-5005.04,9.256e-05,2]
[347539226,1735908652067,-500.0,9.256e-05,2]
[347539227,1735908652077,-2621.66,9.256e-05,2]
[347539228,1735908652087,-992.84,9.256e-05,2]
[347539229,1735908652096,-523.18,9.256e-05,2]
[347539230,1735908652106,-500.0,9.256e-05,2]
[347539231,1735908652115,-2273.17,9.256e-05,2]
[347539232,1735908652124,-6468.52,9.256e-05,2]
[347539233,1735908652134,-787.89,9.256e-05,2]
[347539234,1735908652144,-500.0,9.256e-05,2]
[347539235,1735908652153,-825.14,9.256e-05,2]
[347539236,1735908652164,-500.0,9.256e-05,2]
[347539237,1735908652174,-1709.84,9.256e-05,2]
[347539238,1735908652183,-500.0,9.256e-05,2]
[347539239,1735908652193,-500.0,9.256e-05,2]
[347539240,1735908652202,-2183.54,9.256e-05,2]
[347539241,1735908652212,-500.0,9.256e-05,2]
[347539242,1735908652221,-500.0,9.256e-05,2]
[347539243,1735908652230,-1181.85,9.256e-05,2]
[347539244,1735908652239,-4067.92,9.256e-05,2]
[347539245,1735908652250,-500.0,9.257e-05,2]
[347539246,1735908652259,-526.79800465,9.257e-05,2]
[347539247,1735908652268,-500.0,9.257e-05,2]
[347539248,1735908652278,-176.47547056,9.257e-05,2]
[347539249,1735908652288,-500.0,9.257e-05,2]